[Event "WSTCC-65 2024"]
[Site "Krakow"]
[Date "2024.07.04"]
[Round "3.13"]
[White "Pigott, John C"]
[Black "Ftacnik, Lubomir"]
[Result "1-0"]
[ECO "B96"]
[WhiteElo "2290"]
[BlackElo "2452"]
[Annotator "TA"]
[PlyCount "53"]
[EventDate "2024.07.01"]
[EventType "team-tourn"]
[EventCountry "POL"]
[SourceTitle "playchess.com"]
[Source "ChessBase"]
[SourceQuality "1"]
[TimeControl "40/5400+30:1800+30"]

{[%evp 14,53,32,0,48,30,47,26,40,35,59,47,88,92,143,129,145,156,122,97,185,177,189,187,622,611,583,4,4,16,14,7,518,521,575,566,759,773,753,748,724,722]} 1. e4 {[%emt 0:01:33]} c5 {[%emt 0:00:11]} 2. Nf3 {[%emt 0:00:08]} d6 {[%emt 0:00:08]} 3. d4 {[%emt 0:00:05]} cxd4 {[%emt 0:00:13]} 4. Nxd4 {[%emt 0:00:06]} Nf6 {[%emt 0:00:09]} 5. Nc3 {[%emt 0:00:07]} a6 {[%emt 0:00:08]} 6. Bg5 {[%emt 0:00:16]} e6 {[%emt 0:01:13]} 7. f4 {[%emt 0:00:08]} Nbd7 {[%emt 0:02:23]} 8. Qf3 {[%emt 0:04:11]} h6 {[%emt 0:00:57]} (8... Qc7 $11 {feels stronger.}) 9. Bxf6 $14 {[%emt 0:01:09]} Nxf6 {[%emt 0:02:31]} 10. O-O-O {[%emt 0:00:23]} (10. Bc4 {is more complex.} b5 11. e5 dxe5 12. fxe5 Qxd4 13. Qxa8 Qxe5+ 14. Be2) 10... Qc7 $1 {[%emt 0:02:29] White has an edge.} 11. Bd3 {[%emt 0:19:15] Rhe1 would now be deadly.} Be7 {[%emt 0:08:03]} 12. Rhe1 {[%emt 0:18:54]} O-O {[%emt 0:32:27]} 13. e5 {[%emt 0:07:24]} Ne8 {[%emt 0:01:09]} ({Black should try} 13... dxe5 14. fxe5 Nh7) 14. Kb1 $1 $16 {[%emt 0:04:21] White is much more active.} Bd7 {[%emt 0:05:01]} 15. Qe4 {[%emt 0:14:14]} g6 {[%emt 0:01:11][%cal Bg7g6,Bg6g5][%mdl 32]} 16. h4 {[%emt 0:03:38][%cal Oh4h5]} Ng7 {[%emt 0:15:01] [#]} (16... Bc6 $16 17. Qe3 Bd7) 17. h5 $1 $18 {[%emt 0:01:49][%mdl 512]} Nxh5 {[%emt 0:02:18]} 18. g4 {[%emt 0:00:22][%cal Bg2g4,Bg4h5][%mdl 32]} dxe5 $2 {[%emt 0:09:18]} (18... Nxf4 19. Qxf4 Bg5) 19. gxh5 {[%emt 0:05:32]} exd4 {[%emt 0:00:11] [#]} 20. Qxd4 {[%emt 0:07:49]} ({And not} 20. Nd5 exd5 21. Qxe7 Rae8 $11) (20. Rg1 $1 $18 {[%cal Rg1g6] Threatening mate with Rxg6+!} f5 (20... dxc3 21. Rxg6+ Kh7 22. Rxh6+ Kxh6 23. Qh7#) 21. Rxg6+ (21. Qxd4 g5 $11) 21... Kf7 22. Qxd4) 20... g5 $11 {[%emt 0:10:39]} 21. Nd5 {[%emt 0:03:33]} exd5 {[%emt 0:00:39]} 22. Rxe7 $40 {[%emt 0:00:07][%mdl 128] Intending fxg5 and mate. White is up to no good.} Qd6 $2 {[%emt 0:00:05][%mdl 8192] [#] A mistake that costs the game.} (22... Rae8 $11 {and Black has nothing to worry.} 23. Rde1 Rxe7 (23... Qxf4 $2 {perishes.} 24. Qxf4 gxf4 25. Rg1+ $18) 24. Rxe7 Qd6 (24... Qxf4 $2 25. Qxf4 gxf4 26. Rxd7 $18)) 23. Re5 $1 $18 {[%emt 0:00:08] White is clearly winning.} Bg4 {[%emt 0:01:17]} 24. Rg1 {[%emt 0:00:43]} (24. Qxd5 $2 {loses.} Qxd5 25. Rxd5 Bxd1 $19) 24... f6 {[%emt 0:01:03]} 25. Rxd5 {[%emt 0:00:18]} Qe7 {[%emt 0:00:01]} 26. fxg5 {[%emt 0:00:33]} (26. Rxg4 $2 Qe1#) 26... hxg5 {[%emt 0:00:38]} 27. Qxg4 {[%emt 0:00:10] Weighted Error Value: White=0.22 (precise) /Black=0.77.  Loses game:     	---       	Black=1      Mistake:       	---       	Black=3      Inaccurate:     	---       	Black=2      OK:         	White=10    	Black=2      Best:        	White=3     	Black=1      Strong:       	White=1     	Black=1} (27. Rxg4 $2 Qe1#) 1-0

[Event "WSTCC-65 2024"]
[Site "Krakow"]
[Date "2024.07.04"]
[Round "3.13"]
[White "White, Alastair F"]
[Black "Renman, Nils-Gustaf"]
[Result "0-1"]
[ECO "A40"]
[WhiteElo "2022"]
[BlackElo "2314"]
[Annotator "TA"]
[PlyCount "74"]
[EventDate "2024.07.01"]
[EventType "team-tourn"]
[EventCountry "POL"]
[SourceTitle "playchess.com"]
[Source "ChessBase"]
[SourceQuality "1"]
[TimeControl "40/5400+30:1800+30"]

{[%evp 17,73,63,79,59,62,51,48,50,46,39,125,127,293,159,147,115,97,91,95,104,120,137,135,138,77,0,0,0,0,0,0,-198,-184,-169,0,-507,-491,-505,-502,-537,-493,-498,-502,-492,-489,-495,-466,-437,-244,-552,-524,-494,-378,-29997,-29998,-29998,-29999,-29999]} 1. d4 {[%emt 0:00:08]} e6 {[%emt 0:00:31]} 2. Nf3 {[%emt 0:00:25]} f5 {[%emt 0:00:55]} 3. Bg5 {[%emt 0:04:11]} Nf6 {[%emt 0:00:58]} 4. Nbd2 {[%emt 0:00:38]} d5 {[%emt 0:00:35]} 5. e3 {[%emt 0:02:26]} Bd6 {[%emt 0:00:18]} 6. Ne5 {[%emt 0:01:17] A80: Dutch Defence: Unusual White second moves.} O-O {[%emt 0:00:38]} 7. g4 $146 {[%emt 0:07:39]} ({Predecessor:} 7. Bxf6 Rxf6 8. f4 c5 9. c3 Qb6 10. Qb3 Bxe5 11. fxe5 Rf8 12. g3 Nc6 13. Be2 {1-0 Damljanovic,B (2543)-Markovic,I (2474) SRB-chT Kragujevac 2016 (3.2)}) 7... Nbd7 {[%emt 0:04:10]} 8. f4 {[%emt 0:02:26]} Qe8 {[%emt 0:01:42]} 9. gxf5 {[%emt 0:02:28]} exf5 {[%emt 0:00:12]} 10. Rg1 {[%emt 0:02:04]} Kh8 {[%emt 0:02:28]} 11. Qf3 {[%emt 0:06:32]} Ne4 {[%emt 0:01:57]} 12. Nxe4 {[%emt 0:00:27]} fxe4 {[%emt 0:02:50]} 13. Qg3 {[%emt 0:00:19]} Bxe5 {[%emt 0:08:20]} ({Black should try} 13... Nxe5 $14 14. dxe5 Bc5) 14. dxe5 $16 {[%emt 0:03:00]} (14. fxe5 $6 Rf3 15. Qh4 Nf8 $11) 14... Rg8 $2 {[%emt 0:10:06] [#]} (14... Qf7 $16 15. O-O-O Nb6) 15. O-O-O {[%emt 0:03:45]} ({White must play} 15. Bh3 $1 $18) 15... Nb6 $16 {[%emt 0:01:00]} 16. Be2 {[%emt 0:07:34]} Bf5 {[%emt 0:01:06]} 17. Qh4 {[%emt 0:00:23]} Qe6 {[%emt 0:00:44]} 18. Rg3 {[%emt 0:04:36]} c5 {[%emt 0:07:59]} 19. Bg4 {[%emt 0:09:46]} Bxg4 {[%emt 0:01:40]} 20. Rxg4 {[%emt 0:00:11]} d4 {[%emt 0:08:43]} 21. Rdg1 {[%emt 0:00:28]} (21. exd4 Qxa2 22. f5 (22. dxc5 $2 Nc4 $19) 22... Rgd8 $19) (21. f5 $16 Qxf5 22. Rxe4 (22. exd4 cxd4 23. Rxe4 Rae8 $16)) 21... Nd5 $1 $11 {[%emt 0:04:31]} (21... Qxa2 $2 22. Bf6 (22. exd4 $2 Nc4 $19) 22... Qa1+ (22... gxf6 23. Qxf6+) (22... Nc4 23. Qxh7+ Kxh7 24. Rh4#) 23. Kd2 dxe3+ (23... Qxb2 24. Qxh7+ Kxh7 25. Rh4#) (23... Nc4+ $2 24. Ke2 $18) 24. Kxe3 Nd5+ 25. Kf2 (25. Kxe4 Qa4+ 26. Kxd5 Qd4+ 27. Ke6 Qc4+ 28. Kd6 Qd4+ 29. Ke6 Qc4+ 30. Kd6 Qd4+ 31. Ke6 $11) 25... e3+ 26. Kf3 $18) 22. exd4 {[%emt 0:21:34]} Ne3 {[%emt 0:07:13]} 23. R4g3 {[%emt 0:01:49]} (23. d5 Qxd5 24. R4g3 Nf5 $15) 23... Nf5 {[%emt 0:00:36]} 24. Qg4 $2 {[%emt 0:03:35]} (24. Qh5 $11 Nxd4 (24... Nxg3 25. hxg3 g6 26. Qh6 $18) 25. Rh3) 24... cxd4 $19 {[%emt 0:01:09]} (24... Nxd4 25. Rh3 (25. Qxe6 Nxe6 26. Re1 Rgf8 $14) 25... Rgf8 (25... Qxa2 26. Rxh7+ Kxh7 27. Qh5#) 26. c3 Qxa2 27. cxd4 cxd4 28. Be7 Rac8+ 29. Rc3 Rxc3+ (29... Qa1+ 30. Kd2 $11) 30. bxc3 Qa1+ 31. Kc2 Qxc3+ 32. Kb1 Qb3+ 33. Ka1 Qc3+ 34. Ka2 Qc2+ 35. Ka1 Qc3+ 36. Kb1 Qb3+ 37. Ka1 Qc3+ $11) 25. Rh3 {[%emt 0:00:57]} Raf8 $2 {[%emt 0:14:15]} (25... h6 $19 {[%cal Oa8c8] aiming for ...Rac8!} 26. Rg2 e3) 26. Rxh7+ $2 {[%emt 0:07:40][%mdl 8192]} (26. Qh5 $11 {and White is okay.} Nh6 (26... Qxa2 27. Qxh7#) (26... h6 27. Bf6 $16) 27. Bxh6 gxh6 28. Rxg8+ Qxg8 29. Rg3) 26... Kxh7 $19 {[%emt 0:00:05]} 27. Qh3+ {[%emt 0:00:06]} Kg6 {[%emt 0:00:37]} 28. Bf6+ {[%emt 0:00:23]} Kf7 {[%emt 0:00:19]} 29. Qh5+ {[%emt 0:00:33]} g6 {[%emt 0:00:21]} 30. Qh7+ {[%emt 0:00:37]} Rg7 {[%emt 0:05:55]} 31. Bxg7 {[%emt 0:00:09]} Nxg7 {[%emt 0:00:05]} 32. Rg5 {[%emt 0:01:45]} Qa6 {[%emt 0:04:40]} (32... Qxa2 33. Qxg6+ (33. Rxg6 Ke8 $11) 33... Ke7 34. Qd6+ (34. Qxg7+ Rf7 $16) 34... Ke8 35. Qb8+ (35. Rxg7 Qa1+ 36. Kd2 e3+ 37. Ke2 Qa6+ 38. Qxa6 bxa6 $18) 35... Kf7 36. Qxb7+ Ke8 37. Rxg7 $18 (37. Qxg7 Qa1+ 38. Kd2 e3+ 39. Ke2 Qa6+ 40. Ke1 Qa5+ 41. Ke2 Qd2+ 42. Kf3 Qf2+ 43. Ke4 Qxf4+ 44. Kd5 d3 $11) (37. Qc6+ Kd8 $18) (37. Qxg7 Qa1+ 38. Kd2 e3+ 39. Ke2 Qa6+ 40. Ke1 Rxf4 $11) (37. Qc6+ Kd8 $18)) (32... Rg8 $142 {[%cal Oe4e3] ...e3! is the strong threat.} 33. h4 e3 (33... Qxa2 34. Qxg6+ Kf8 35. Qd6+ Kf7 36. Qd7+ Kf8 37. Qd6+ Kf7 38. Qd7+ Kf8 39. Qd8+ Kf7 40. Qd7+ $11)) 33. e6+ $2 {[%emt 0:02:43]} (33. b3 {nothing else works.} d3 (33... Qxa2 34. Qxg6+ Ke7 35. Qd6+ Ke8 36. Qb8+ Kf7 37. Qc7+ Ke8 38. Qc8+ Ke7 39. Rxg7+ Rf7 40. Qc7+ Ke8 41. Qxf7+ Kd8 42. Rg8#) 34. f5 Qa3+ (34... Qxa2 35. Qxg6+ Ke7 36. Qd6+ Ke8 37. Qb8+ Kd7 38. Rxg7+ Kc6 39. Qd6+ Kb5 40. Rxb7+ Ka5 41. Rxa7+ Kb5 42. c4#) 35. Kd2 Qa5+ (35... Qxa2 36. Qxg6+ Ke7 37. Qd6+ Ke8 38. Qb8+ Kd7 39. Rxg7+ Kc6 40. Qd6+ Kb5 41. Rxb7+ Ka5 42. Qc5+ Ka6 43. Rxa7#) 36. Kc1) 33... Qxe6 $19 {[%emt 0:00:59]} (33... Kxe6 $2 34. Qxg6+ (34. Qxg7 $2 Qf1+ 35. Kd2 e3#) 34... Ke7 35. Qxg7+ Rf7 36. Re5+ $18 (36. Qxd4 Qf1+ 37. Kd2 Qxf4+ 38. Qe3 Qxh2+ 39. Ke1 Qxc2 $11) (36. Qxd4 Qf1+ 37. Kd2 Qxf4+ 38. Qe3 Qxh2+ 39. Ke1 Qh4+ 40. Qg3 Qxg3+ 41. Rxg3 Kf6 $11)) 34. f5 {[%emt 0:00:12]} Qd6 {[%emt 0:03:43]} (34... Qxa2 $2 {loses.} 35. Qxg6+ Ke7 36. Qxg7+ Qf7 37. Qe5+ (37. Qxd4 Qf6 $18) 37... Kd8 38. Rg7 $18 (38. Qxe4 Qf6 $18) (38. Qxd4+ Qd7 $18) (38. Qxe4 Qf6 $18) (38. Qxd4+ Qd7 $18)) 35. Rxg6 $2 {[%emt 0:02:11]} (35. Rg4 $19 g5 (35... gxf5 36. Rxg7+ Ke8 37. a3 $11) 36. h4) 35... Qf4+ {[%emt 0:00:16]} 36. Kd1 {[%emt 0:00:09]} Qf1+ {[%emt 0:00:12]} 37. Kd2 {[%emt 0:00:10]} e3# 0-1

[Event "WSTCC-65 2024"]
[Site "Krakow"]
[Date "2024.07.04"]
[Round "3.13"]
[White "Hogan, Pat"]
[Black "Freeman, Richard C P"]
[Result "0-1"]
[ECO "A40"]
[WhiteElo "1936"]
[BlackElo "1951"]
[Annotator "NA RC"]
[PlyCount "110"]
[EventDate "2024.07.01"]
[EventType "team-tourn"]
[EventCountry "POL"]
[SourceTitle "playchess.com"]
[Source "ChessBase"]
[SourceQuality "1"]
[TimeControl "40/5400+30:1800+30"]

1. d4 {[%emt 0:00:05]} g6 {[%emt 0:00:08]} 2. Nf3 {[%emt 0:00:16]} Bg7 {[%emt 0:00:10]} 3. e3 {[%emt 0:00:14]} d6 {[%emt 0:00:45]} 4. Be2 {[%emt 0:00:12]} Nf6 {[%emt 0:02:52]} 5. O-O {[%emt 0:00:58]} O-O {[%emt 0:00:16]} 6. c4 {[%emt 0:00:59]} Nbd7 {[%emt 0:01:13]} 7. Nc3 {[%emt 0:02:02]} e5 {[%emt 0:02:41]} 8. b4 {[%emt 0:02:27]} c6 {[%emt 0:07:44]} 9. Bb2 {[%emt 0:00:55]} e4 {[%emt 0:03:42]} 10. Nd2 {[%emt 0:00:45]} d5 {[%emt 0:00:08]} 11. cxd5 {[%emt 0:02:12]} cxd5 {[%emt 0:00:06]} 12. Qb3 {[%emt 0:04:53]} Nb6 {[%emt 0:05:02]} 13. a4 {[%emt 0:02:33]} Be6 {[%emt 0:06:39]} 14. a5 {[%emt 0:01:38]} Nc8 {[%emt 0:04:03]} 15. b5 {[%emt 0:05:40]} Nd6 {[%emt 0:02:44]} 16. Ba3 {[%emt 0:07:20]} Re8 {[%emt 0:03:45]} 17. b6 {[%emt 0:06:23]} axb6 {[%emt 0:15:48]} 18. Qxb6 {[%emt 0:01:35]} Qxb6 {[%emt 0:05:48]} 19. axb6 {[%emt 0:00:03]} Bf8 {[%emt 0:00:31]} 20. Bxd6 {[%emt 0:02:11]} Rxa1 {[%emt 0:05:52]} 21. Rxa1 {[%emt 0:03:27]} Bxd6 {[%emt 0:01:32]} 22. Nb5 {[%emt 0:00:34]} Bb4 {[%emt 0:02:23]} 23. Nb3 {[%emt 0:00:38]} Nd7 {[%emt 0:01:16]} 24. Ra7 {[%emt 0:03:11]} Rb8 {[%emt 0:04:17]} 25. Na5 {[%emt 0:04:38]} Bxa5 {[%emt 0:04:15]} 26. Rxa5 {[%emt 0:02:28]} Nxb6 {[%emt 0:00:37]} 27. Nc7 {[%emt 0:02:35]} Rc8 {[%emt 0:10:43]} 28. Rc5 {[%emt 0:03:44]} Kf8 {[%emt 0:01:33]} 29. Nxe6+ {[%emt 0:00:15]} fxe6 {[%emt 0:00:05]} 30. Rxc8+ {[%emt 0:00:49]} Nxc8 {[%emt 0:00:01]} 31. Kf1 {[%emt 0:00:39]} Ke7 {[%emt 0:00:28]} 32. Ke1 {[%emt 0:00:10]} Kd6 {[%emt 0:00:44]} 33. Kd2 {[%emt 0:00:11]} Ne7 {[%emt 0:01:47]} 34. Kc3 {[%emt 0:00:32]} e5 {[%emt 0:00:43]} 35. dxe5+ {[%emt 0:00:20]} Kxe5 {[%emt 0:00:02]} 36. Bb5 {[%emt 0:02:16]} Nc6 {[%emt 0:00:47]} 37. Ba4 {[%emt 0:00:20]} d4+ {[%emt 0:01:22]} 38. exd4+ {[%emt 0:00:03]} Nxd4 {[%emt 0:00:08]} 39. g3 {[%emt 0:00:33]} g5 {[%emt 0:04:01]} 40. h3 {[%emt 0:00:32]} e3 {[%emt 0:02:08]} 41. fxe3 {[%emt 0:30:24]} Ne2+ {[%emt 0:30:01]} 42. Kd2 {[%emt 0:01:13]} Nxg3 {[%emt 0:00:11]} 43. Ke1 {[%emt 0:00:24]} Ne4 {[%emt 0:02:26]} 44. Bd7 {[%emt 0:00:35]} Nd6 {[%emt 0:00:00]} 45. Bg4 {[%emt 0:00:00]} b5 {[%emt 0:00:00]} 46. Bd1 {[%emt 0:00:00]} Ne4 {[%emt 0:00:00]} 47. Bb3 {[%emt 0:00:00]} h6 {[%emt 0:00:00]} 48. Ke2 {[%emt 0:00:00]} b4 {[%emt 0:00:00]} 49. Bc2 {[%emt 0:00:00]} Nc5 {[%emt 0:00:00]} 50. Bb1 {[%emt 0:00:00]} b3 {[%emt 0:00:00]} 51. Kf3 {[%emt 0:00:00]} h5 {[%emt 0:00:00]} 52. Kg3 {[%emt 0:00:00]} Ne4+ {[%emt 0:00:00]} 53. Kg2 {[%emt 0:00:00]} b2 {[%emt 0:00:00]} 54. Kh2 {[%emt 0:00:00]} Nd2 {[%emt 0:00:00]} 55. Bd3 {[%emt 0:00:00]} b1=Q 0-1

[Event "WSTCC-65 2024"]
[Site "Krakow"]
[Date "2024.07.04"]
[Round "3.14"]
[White "Plachetka, Jan"]
[Black "Baker, Chris W"]
[Result "1-0"]
[ECO "C67"]
[WhiteElo "2289"]
[BlackElo "2198"]
[Annotator "TA"]
[PlyCount "116"]
[EventDate "2024.07.01"]
[EventType "team-tourn"]
[EventCountry "POL"]
[SourceTitle "playchess.com"]
[Source "ChessBase"]
[SourceQuality "1"]
[TimeControl "40/5400+30:1800+30"]

{[%evp 22,116,0,0,37,0,0,0,11,0,0,0,7,0,0,0,0,0,0,0,0,0,0,0,6,8,43,47,116,80,97,89,108,83,170,103,130,136,125,119,123,88,111,118,134,114,131,124,110,74,75,61,76,75,139,169,157,148,130,128,204,202,188,184,353,342,349,339,364,350,429,425,381,285,1261,1067,1143,1079,523,254,253,247,424,246,282,282,490,490,4395,1626,1379,1292,843,632,4631,4622,1244]} 1. e4 {[%emt 0:00:34]} e5 {[%emt 0:00:12]} 2. Nf3 {[%emt 0:00:06]} Nc6 {[%emt 0:00:09]} 3. Bb5 {[%emt 0:00:15]} Nf6 {[%emt 0:00:28]} 4. O-O {[%emt 0:01:40]} Nxe4 {[%emt 0:00:09]} 5. d4 {[%emt 0:00:53]} Nd6 {[%emt 0:00:09]} 6. Bxc6 {[%emt 0:00:30]} dxc6 {[%emt 0:00:09]} 7. dxe5 {[%emt 0:00:16]} Nf5 {[%emt 0:00:09]} 8. Qxd8+ {[%emt 0:00:34]} Kxd8 {[%emt 0:00:04]} 9. Nc3 {[%emt 0:00:53]} a5 {[%emt 0:01:13]} 10. a4 {[%emt 0:02:42]} h6 {[%emt 0:02:47]} 11. Rd1+ {[%emt 0:01:03]} Ke8 {[%emt 0:00:44]} 12. h3 {[%emt 0:00:39]} Be6 {[%emt 0:03:37] C67: Ruy Lopez: Berlin Defence: 4 0-0 Nxe4.} 13. b3 {[%emt 0:07:06]} Bb4 {[%emt 0:07:30]} 14. Bb2 {[%emt 0:06:59]} Rd8 $146 {[%emt 0:06:21]} ({Predecessor:} 14... Bxc3 15. Bxc3 c5 16. Rd3 Ne7 17. Rad1 Nc6 18. R3d2 Ke7 19. Ne1 b6 20. f4 h5 {½-½ Azar,P (2469)-Krivonosovs,V (2470) Veinger mem-B corr 2002}) 15. Ne2 {[%emt 0:03:43]} Rxd1+ {[%emt 0:06:27]} 16. Rxd1 {[%emt 0:00:14]} Bd5 {[%emt 0:00:50]} 17. Nfd4 {[%emt 0:01:28]} Be4 {[%emt 0:06:08]} 18. Nxf5 {[%emt 0:03:46]} Bxf5 {[%emt 0:00:35]} 19. Nd4 {[%emt 0:00:42]} Bg6 {[%emt 0:04:57]} 20. g4 {[%emt 0:01:47]} h5 {[%emt 0:06:36]} 21. Kg2 {[%emt 0:09:43]} hxg4 {[%emt 0:01:44]} 22. hxg4 {[%emt 0:00:08]} Bc5 {[%emt 0:05:04]} 23. Rd2 {[%emt 0:02:17]} (23. Nf5 Bxf5 24. gxf5 Rh5 $17) 23... Bxd4 {[%emt 0:14:28]} 24. Bxd4 $11 {[%emt 0:00:20][%mdl 4096] Endgame. KRB-KRB} Ke7 {[%emt 0:05:13]} (24... Be4+ $14 25. f3 Bd5) 25. Re2 $16 {[%emt 0:05:35]} Rd8 {[%emt 0:08:41]} 26. Bc5+ {[%emt 0:04:08]} Ke6 {[%emt 0:00:19]} 27. f4 {[%emt 0:00:31][%cal Bf2f4,Bf4f5][%mdl 32]} Rd5 {[%emt 0:01:19]} (27... Kd7 $16 {keeps fighting.} 28. f5 Bh7) 28. Bf8 {[%emt 0:01:19]} ({White should play} 28. f5+ $18 Bxf5 29. gxf5+ Kxf5 30. Bf2 (30. Bf8 Rd8 $18)) 28... f5 {[%emt 0:01:00]} 29. exf6+ {[%emt 0:00:30]} (29. Bxg7 fxg4 30. Kg3 Rd1 $15) 29... Kxf6 {[%emt 0:00:28]} 30. f5 {[%emt 0:02:27]} Bh7 {[%emt 0:01:17]} 31. Kg3 {[%emt 0:01:03] Black must now prevent Ba3.} Kf7 {[%emt 0:01:45]} 32. Ba3 {[%emt 0:00:29]} c5 {[%emt 0:00:24][%cal Bc6c5,Bc5c4][%mdl 32] [#]} 33. Bb2 $1 {[%emt 0:00:51]} b6 {[%emt 0:06:38]} 34. Be5 {[%emt 0:03:54]} g6 {[%emt 0:02:16]} 35. Kf4 {[%emt 0:05:54]} (35. Bxc7 gxf5 36. g5 (36. Bxb6 fxg4 37. Bxa5 Rd1 $14) 36... c4 $11) 35... gxf5 {[%emt 0:04:47]} 36. gxf5 {[%emt 0:00:08][%cal Oe2h2]} (36. Bxc7 Rd4+ 37. Ke5 Rd7 $11) 36... c4 {[%emt 0:00:13]} 37. Rg2 {[%emt 0:04:47]} ({Of course not} 37. Bxc7 Rxf5+ 38. Ke3 Rf6 $11) ({Much worse is} 37. bxc4 Rc5 $11) 37... Bg8 {[%emt 0:02:13]} (37... Kf8 $142) 38. Rg7+ {[%emt 0:07:20]} ({Don't play} 38. Bxc7 $6 cxb3 39. cxb3 Rd3 $14) 38... Kf8 {[%emt 0:00:06]} 39. Rxc7 {[%emt 0:00:05]} cxb3 {[%emt 0:00:29]} 40. cxb3 {[%emt 0:00:08]} Rd1 {[%emt 0:01:53]} (40... Rd8 $16) 41. Rc8+ $18 {[%emt 0:33:44]} Kf7 {[%emt 0:01:39]} 42. Rb8 {[%emt 0:00:00]} Rh1 $2 {[%emt 0:07:31]} (42... Rf1+ 43. Kg4 Rg1+ 44. Bg3 Rd1 45. Rxb6 Ke8) 43. Rxb6 {[%emt 0:00:00]} Rf1+ {[%emt 0:06:49]} 44. Ke4 {[%emt 0:00:00]} Re1+ {[%emt 0:00:13]} 45. Kd4 {[%emt 0:00:00]} Rf1 {[%emt 0:01:23]} 46. Rb7+ {[%emt 0:00:00]} Ke8 {[%emt 0:00:37]} 47. f6 {[%emt 0:00:00]} Rf3 $2 {[%emt 0:01:53]} (47... Rd1+ 48. Kc3 Bf7 49. Re7+ Kf8) 48. b4 {[%emt 0:00:00]} axb4 {[%emt 0:01:30]} 49. Rxb4 {[%emt 0:00:00]} Kd7 {[%emt 0:04:21]} 50. a5 {[%emt 0:00:00]} (50. Rb8 $142 Ba2 51. a5) 50... Ra3 {[%emt 0:00:53]} 51. Rb5 {[%emt 0:00:00]} Ra4+ $2 {[%emt 0:00:29]} (51... Ke6 52. Ke4 Bh7+ 53. Kf4 Ra4+ 54. Kg5 Bd3) 52. Ke3 {[%emt 0:00:00]} (52. Kc5 $142) 52... Ke6 {[%emt 0:04:59]} 53. Bc3 {[%emt 0:00:00] And now Rb6+ would win.} Kd6 $2 {[%emt 0:01:52]} (53... Kd7 54. Rb7+ Kc8) 54. Rb7 {[%emt 0:00:00] f7 would now be deadly.} Ra3 {[%emt 0:01:25]} (54... Rc4 $142 55. Kd2 Rf4) 55. Kd2 {[%emt 0:00:00]} (55. Kd3 $142 Ke6 56. Re7+ Kd6 57. Ra7) 55... Ra2+ {[%emt 0:00:09]} 56. Kd3 {[%emt 0:00:00]} Rf2 {[%emt 0:02:38]} 57. a6 {[%emt 0:00:00] Hoping for a7.} Kc6 {[%emt 0:00:32]} 58. Rg7 {[%emt 0:00:00]} Bd5 1-0

[Event "WSTCC-65 2024"]
[Site "Krakow"]
[Date "2024.07.04"]
[Round "3.14"]
[White "Hammar, Bengt"]
[Black "Bhopal, Raj"]
[Result "1-0"]
[ECO "B01"]
[WhiteElo "2127"]
[BlackElo "1991"]
[Annotator "NA RC"]
[PlyCount "97"]
[EventDate "2024.07.01"]
[EventType "team-tourn"]
[EventCountry "POL"]
[SourceTitle "playchess.com"]
[Source "ChessBase"]
[SourceQuality "1"]
[TimeControl "40/5400+30:1800+30"]

1. e4 {[%emt 0:00:33]} d5 {[%emt 0:00:17]} 2. exd5 {[%emt 0:00:16]} Qxd5 {[%emt 0:00:12]} 3. Nc3 {[%emt 0:00:38]} Qd6 {[%emt 0:00:06]} 4. d4 {[%emt 0:01:48]} Nf6 {[%emt 0:00:12]} 5. Nf3 {[%emt 0:01:21]} a6 {[%emt 0:00:41]} 6. g3 {[%emt 0:05:22]} b5 {[%emt 0:01:08]} 7. Bg2 {[%emt 0:04:23]} Bb7 {[%emt 0:00:12]} 8. O-O {[%emt 0:00:43]} e6 {[%emt 0:00:32]} 9. Re1 {[%emt 0:05:08]} Be7 {[%emt 0:00:38]} 10. Bf4 {[%emt 0:04:37]} Qb6 {[%emt 0:01:26]} 11. a4 {[%emt 0:03:28]} c6 {[%emt 0:25:03]} 12. Ne5 {[%emt 0:08:59]} O-O {[%emt 0:05:40]} 13. Be3 {[%emt 0:22:33]} Nd5 {[%emt 0:03:28]} 14. Nxd5 {[%emt 0:00:38]} cxd5 {[%emt 0:00:38]} 15. axb5 {[%emt 0:00:55]} axb5 {[%emt 0:02:53]} 16. Rxa8 {[%emt 0:00:37]} Bxa8 {[%emt 0:01:06]} 17. Bf1 {[%emt 0:01:24]} f6 {[%emt 0:09:37]} 18. Nd3 {[%emt 0:04:39]} Na6 {[%emt 0:06:54]} 19. Bh3 {[%emt 0:01:09]} Bb7 {[%emt 0:09:39]} 20. Bd2 {[%emt 0:07:15]} Bc8 {[%emt 0:02:20]} 21. Qe2 {[%emt 0:00:42]} f5 {[%emt 0:05:09]} 22. c3 {[%emt 0:01:20]} Bf6 {[%emt 0:02:14]} 23. b4 {[%emt 0:01:49]} Bd7 {[%emt 0:02:48]} 24. Bf1 {[%emt 0:00:28]} Re8 {[%emt 0:04:05]} 25. h4 {[%emt 0:01:22]} g6 {[%emt 0:02:04]} 26. Ra1 {[%emt 0:03:11]} Rc8 {[%emt 0:03:36]} 27. Ra3 {[%emt 0:02:40]} Nc7 {[%emt 0:03:10]} 28. Bf4 {[%emt 0:01:23]} Kf7 {[%emt 0:01:40]} 29. Ne5+ {[%emt 0:01:56]} Bxe5 {[%emt 0:00:34]} 30. Qxe5 {[%emt 0:00:23]} Ne8 {[%emt 0:02:06]} 31. Bg5 {[%emt 0:00:38]} Kg8 {[%emt 0:01:09]} 32. h5 {[%emt 0:00:48]} Qd6 {[%emt 0:01:10]} 33. hxg6 {[%emt 0:01:53]} hxg6 {[%emt 0:00:35]} 34. Qe3 {[%emt 0:00:14]} Qc7 {[%emt 0:01:27]} 35. Bf4 {[%emt 0:00:14]} Qd8 {[%emt 0:00:51]} 36. Be5 {[%emt 0:00:18]} g5 {[%emt 0:01:30]} 37. Ra7 {[%emt 0:00:33]} Bc6 {[%emt 0:00:48]} 38. Be2 {[%emt 0:00:50]} Ra8 {[%emt 0:00:25]} 39. Rxa8 {[%emt 0:00:15]} Bxa8 {[%emt 0:00:44]} 40. Bxb5 {[%emt 0:00:14]} Ng7 {[%emt 0:00:48]} 41. Be2 {[%emt 0:31:03]} Qe7 {[%emt 0:06:25]} 42. Qc1 {[%emt 0:00:00]} Qd8 {[%emt 0:03:32]} 43. Qa3 {[%emt 0:00:00]} Qc8 {[%emt 0:02:21]} 44. Qa7 {[%emt 0:00:00]} Qb7 {[%emt 0:00:36]} 45. Qa5 {[%emt 0:00:00]} Qc8 {[%emt 0:01:14]} 46. Ba6 {[%emt 0:00:00]} Qxc3 {[%emt 0:01:25]} 47. Qd8+ {[%emt 0:00:00]} Kh7 {[%emt 0:01:26]} 48. Qe7 {[%emt 0:00:00]} Qa1+ {[%emt 0:00:54]} 49. Bf1 {[%emt 0:00:00]} 1-0

[Event "WSTCC-65 2024"]
[Site "Krakow"]
[Date "2024.07.04"]
[Round "3.14"]
[White "Wood, Peter R"]
[Black "Noone, Joe"]
[Result "1/2-1/2"]
[ECO "B24"]
[WhiteElo "1948"]
[BlackElo "1906"]
[Annotator "NA RC"]
[PlyCount "36"]
[EventDate "2024.07.01"]
[EventType "team-tourn"]
[EventCountry "POL"]
[SourceTitle "playchess.com"]
[Source "ChessBase"]
[SourceQuality "1"]
[TimeControl "40/5400+30:1800+30"]

1. e4 {[%emt 0:00:08]} c5 {[%emt 0:00:07]} 2. Nc3 {[%emt 0:00:13]} Nc6 {[%emt 0:00:19]} 3. g3 {[%emt 0:00:20]} g6 {[%emt 0:00:45]} 4. Bg2 {[%emt 0:00:11]} Bg7 {[%emt 0:00:03]} 5. d3 {[%emt 0:00:20]} e6 {[%emt 0:01:31]} 6. Be3 {[%emt 0:00:41]} Nd4 {[%emt 0:03:11]} 7. Nce2 {[%emt 0:03:07]} Ne7 {[%emt 0:05:50]} 8. c3 {[%emt 0:01:27]} Nxe2 {[%emt 0:01:21]} 9. Nxe2 {[%emt 0:00:24]} b6 {[%emt 0:01:34]} 10. O-O {[%emt 0:02:26]} Bb7 {[%emt 0:06:46]} 11. Qd2 {[%emt 0:03:58]} O-O {[%emt 0:06:55]} 12. Bh6 {[%emt 0:14:58]} d5 {[%emt 0:06:14]} 13. Bxg7 {[%emt 0:01:08]} Kxg7 {[%emt 0:00:03]} 14. Rad1 {[%emt 0:03:16]} Qc7 {[%emt 0:06:12]} 15. Qg5 {[%emt 0:13:42]} h6 {[%emt 0:04:07]} 16. Qe3 {[%emt 0:03:33]} Rad8 {[%emt 0:01:46]} 17. f4 {[%emt 0:08:42]} Rd7 {[%emt 0:06:18]} 18. g4 {[%emt 0:18:58]} f5 {[%emt 0:22:25]} 1/2-1/2